Cogmind - Beta 9.3 @@@ ROGUE MODE // 2019.12.25 @ 19:16:43 Player: Demise Result: Destroyed by G-34 Mercenary with Small Laser Performance ------------- Evolutions (0) 0 Regions Visited (1) 200 Robots Destroyed (25) 125 Value Destroyed (284) 284 Prototype IDs (2) 40 Alien Tech Used (0) 0 Bonus (0) 0 TOTAL SCORE: 649 Bonus ------- None Cogmind --------- Core Integrity 0/250 Matter 260/300 Energy 103/125 System Corruption 0% Temperature Cool (12) Movement Walking (180) Ox2 Location -10/Materials Parts ------- > --- POWER (1) -------- Light Ion Engine > --- PROPULSION (2) --- Aluminum Leg Aluminum Leg > --- UTILITY (2) ------ Small Storage Unit High-capacity Storage Unit > --- WEAPON (2) ------- EM Pulse Gun EM Pulse Gun > --- INVENTORY (14) --- Aluminum Leg Wheel Small Storage Unit High-capacity Matter Pod (60) Terrain Scanner Seismic Analyzer Tractor Beam EM Pulse Gun EM Pulse Gun Grenade Launcher Mining Laser Peak State ------------ > --- POWER ------------ Ion Engine > --- PROPULSION ------- Aluminum Leg Aluminum Leg > --- UTILITY ---------- High-capacity Storage Unit Light Armor Plating > --- WEAPON ----------- Assault Rifle Assault Rifle > --- INVENTORY -------- Wheel Small Storage Unit Small Storage Unit High-capacity Matter Pod Terrain Scanner Seismic Analyzer Tractor Beam EM Pulse Gun Grenade Launcher Mining Laser [Rating: 8] Favorites ----------- Power Ion Engine Engine Ion Engine Propulsion Aluminum Leg Leg Aluminum Leg Wheel Wheel Utility Small Storage Unit Device Terrain Scanner Storage Small Storage Unit Protection Light Armor Plating Weapon Assault Rifle Energy Gun EM Pulse Gun Ballistic Gun Assault Rifle Build | -11 -10 ------- Run | Scr Mat Slots Evolved . | . . Power . | . . Propulsion . | . . Utility . | . . Weapon . | . . Parts Attached 24 | 11 13 Power 5 | 4 1 Engine 5 | 4 1 Core . | . . Reactor . | . . Propulsion 5 | 3 2 Treads . | . . Leg 4 | 2 2 Wheel 1 | 1 . Hover . | . . Flight . | . . Utility 6 | 1 5 Device 1 | . 1 Storage 4 | 1 3 Processor . | . . Hackware . | . . Protection 1 | . 1 Artifact . | . . Weapon 8 | 3 5 Energy Gun 6 | 1 5 Energy Cannon . | . . Ballistic Gun 2 | 2 . Ballistic Cannon . | . . Launcher . | . . Special Weapon . | . . Impact Weapon . | . . Slashing Weapon . | . . Piercing Weapon . | . . Special Melee Weapon . | . . Unidentified Prototypes . | . . Parts Lost 7 | . 7 Power 1 | . 1 Propulsion 1 | . 1 Utility 1 | . 1 Weapon 4 | . 4 Highest Loss Streak 7 | . 7 Average Slot Usage (%) 93 | . 93 Engine 13 | . 13 Leg 27 | . 27 Storage 19 | . 19 Protection 6 | . 6 Energy Gun 5 | . 5 Ballistic Gun 20 | . 20 Naked Turns . | . . Heaviest Build 45 | 13 45 Greatest Support 20 | 20 20 Greatest Overweight (x) 4 | . 4 Average Overweight (x) . | . 1 Largest Inventory Capacity 14 | 6 14 Average Capacity 9 | 5 11 Most Carried 12 | 6 12 Average Carried 7 | 4 9 Final Capacity 14 | 6 14 Final Carried 11 | 6 11 Class Distribution -------------------- 100% | Mutant Dominant Class ---------------- Mutant | -10/Materials Resources | -11 -10 ----------- Run | Scr Mat Matter Collected 931 | 629 302 Remotely . | . . Salvage Created 655 | 334 321 Parts 48 | 27 21 Haulers Intercepted 1 | . 1 Recyclers Shooed 2 | 1 1 Parts Field Recycled . | . . Retrieved Matter . | . . Parts Self-Destructed . | . . Prevented . | . . Kills | -11 -10 ------- Run | Scr Mat Combat Hostiles Destroyed 10 | . 10 Guns 10 | . 10 Classes Destroyed 6 | 3 3 Worker 4 | 4 . Tunneler 9 | 9 . Hauler 1 | . 1 Recycler 1 | 1 . Swarmer 6 | . 6 Grunt 4 | . 4 Best Kill Streak 5 | 5 3 Combat Bots Only 2 | . 2 Max Kills in Single Turn 1 | 1 1 Gunslinging . | . . Exploded . | . . Melee . | . . Uniques/NPCs Destroyed . | . . Combat | -11 -10 -------- Run | Scr Mat Damage Taken 986 | . 986 Core 257 | . 257 Absorbed by Shields . | . . Core Remaining (%) 100 | 100 . Volleys Fired 81 | 45 36 Largest 2 | 2 2 Hottest 80 | 40 80 Shots Fired 157 | 90 67 Gun 157 | 90 67 Cannon . | . . Launcher . | . . Special . | . . Kinetic 145 | 90 55 Thermal . | . . Explosive . | . . Electromagnetic 12 | . 12 Robot Hit Streak 8 | 8 6 Robot Miss Streak 9 | 5 9 Penetration Max . | . . Secondary Targets 3 | . 3 Max Gunslinging Chain 1 | . 1 Shots Hit Robots 85 | 52 33 Core Hits 32 | 15 17 Critical Hits 1 | 1 . Critical Kills . | . . Critical Parts Destroyed 1 | 1 . Melee Attacks . | . . Impact . | . . Slashing . | . . Piercing . | . . Sneak Attacks . | . . Combat Hostiles . | . . Follow-up Attacks . | . . Damage Inflicted 1124 | 625 499 Guns 1069 | 625 444 Cannons . | . . Explosions 55 | . 55 Melee . | . . Ramming . | . . Kinetic 939 | 625 314 Thermal 55 | . 55 Explosive . | . . Electromagnetic 130 | . 130 Impact . | . . Slashing . | . . Piercing . | . . Highest Corruption . | . . Average Corruption . | . . Corruption Purged . | . . Overload Shots . | . . Overflow Damage 18 | . 18 Projectiles . | . . Explosions 18 | . 18 Melee . | . . Knockbacks . | . . Impact . | . . Kinetic . | . . Secondary . | . . Self-Inflicted Damage 55 | . 55 Shots 1 | . 1 Rammed . | . . Targets Rammed . | . . Kicked . | . . Crushed . | . . Highest Temperature 30 | . 30 Average Temperature 8 | . 8 Received Heat Transfer 336 | . 336 Siege Activations . | . . Robots Corrupted . | . . Combat Hostiles . | . . Parts Fried . | . . Impact Corruptions . | . . Robots Melted . | . . Combat Hostiles . | . . Parts Melted . | . . Heat Transferred 50 | . 50 Parts Sabotaged . | . . Parts Stolen . | . . Parts Stripped . | . . Power Chain Reactions 1 | . 1 Missiles Intercepted . | . . Alert | -11 -10 ------- Run | Scr Mat Peak Influence 197 | 70 197 Average Influence 67 | 36 82 Maximum Alert Level . | . . Low Security (%) 100 | 100 100 Level 1 . | . . Level 2 . | . . Level 3 . | . . Level 4 . | . . Level 5 . | . . High Security . | . . Max Security . | . . Squads Dispatched 3 | . 3 Investigation 1 | . 1 Extermination . | . . Reinforcement 2 | . 2 Assault . | . . Garrison . | . . Intercept . | . . Construction Impeded . | . . Haulers Reinforced . | . . Stealth | -11 -10 --------- Run | Scr Mat Distress Signals 1 | . 1 Communications Jammed . | . . Distress Signals . | . . Times Spotted 19 | . 19 Peak Tracking Total 6 | . 6 Tactical Retreats 1 | . 1 Traps | -11 -10 ------- Run | Scr Mat Traps Triggered 1 | . 1 Indirectly . | . . Trap Hack Attempts . | . . Triggered . | . . Disarmed . | . . Reprogrammed . | . . Reused . | . . Traps Extracted . | . . Installed . | . . Triggered . | . . Machines | -11 -10 ---------- Run | Scr Mat Machines Disabled . | . . Max in Single Turn . | . . Machines Sabotaged . | . . Garrisons Compromised . | . . Overloaded Fab Kills . | . . Fab Network Shutdowns . | . . Hacking | -11 -10 --------- Run | Scr Mat Machines Accessed 1 | . 1 Terminals 1 | . 1 Fabricators . | . . Repair Stations . | . . Recycling Units . | . . Scanalyzers . | . . Garrison Access . | . . Total Hacks 6 | . 6 Successful 3 | . 3 Failed 3 | . 3 Catastrophic . | . . Database Lockouts . | . . Manual 4 | . 4 Terminals 6 | . 6 Fabricators . | . . Repair Stations . | . . Recycling Units . | . . Scanalyzers . | . . Garrison Access . | . . Terminal Hacks 2 | . 2 Prototype ID Bank 1 | . 1 Hauler Manifests 1 | . 1 Fabricator Hacks . | . . Repair Station Hacks . | . . Recycling Unit Hacks . | . . Scanalyzer . | . . Garrison Access Hacks . | . . Unauthorized Hacks 5 | . 5 Terminals 1 | . 1 Botnet 1 | . 1 Fabricators . | . . Repair Stations . | . . Recycling Units . | . . Scanalyzers . | . . Garrison Access . | . . Data Cores Recovered . | . . Used . | . . Hacking Detections 1 | . 1 Full Trace Events . | . . Feedback Events . | . . Feedback Blocked . | . . Robot Schematics Acquired . | . . Robots Built . | . . Matter . | . . Time . | . . Total Robot Build Rating . | . . Part Schematics Acquired . | . . Parts Built . | . . Matter . | . . Time . | . . Total Part Build Rating . | . . Parts Repaired . | . . Time . | . . Parts Recycled . | . . Recycled Matter . | . . Retrieved Matter . | . . Retrieved Components . | . . Parts Scanalyzed . | . . Part Schematics Acquired . | . . Parts Damaged . | . . Bothacking | -11 -10 ------------ Run | Scr Mat Used RIF Installer . | . . Robots Hacked . | . . Non-combat . | . . Combat . | . . Robot Hacks Applied . | . . Relay Couplers Released . | . . Robots Rewired . | . . Allies Hacked . | . . Hacks Repelled . | . . Allies | -11 -10 -------- Run | Scr Mat Total Allies . | . . Largest Group . | . . Highest-Rated Group . | . . Highest-Rated Ally . | . . Total Orders . | . . Ally Attacks . | . . Total Damage . | . . Kills . | . . Allies Corrupted . | . . Allies Melted . | . . Intel | -11 -10 ------- Run | Scr Mat Robot Analysis Total . | . . Derelict Logs Recovered . | . . Drone Launches . | . . Drone Recoveries . | . . Exploration | -11 -10 ------------- Run | Scr Mat Turns Passed 1058 | 343 715 Spaces Moved 518 | 152 366 Core 4 | 4 . Treads . | . . Legs 511 | 145 366 Wheels 3 | 3 . Hover . | . . Flight . | . . Fastest Speed 50 | 50 120 Average Speed 146 | 117 158 Slowest Speed 240 | 120 240 Overloaded Moves . | . . Propulsion Burnouts . | . . Robots Hopped . | . . Cave-ins Triggered . | . . Exploration Rate (%) 20 | 4 37 Regions Visited 1 Branch Regions . Pre-discovered Areas . | . . Known Exits Taken . | . . Unknown Exits Taken 1 | 1 . Scrap Searched . | . . Spaces Dug . | . . Terrain Destroyed 3 | . 3 Melee . | . . Projectile . | . . AOE 3 | . 3 Actions | -11 -10 --------- Run | Scr Mat Total 660 | 227 433 Wait 15 | 7 8 Move 517 | 151 366 Hop . | . . Pick Up 13 | 6 7 Fast Attach 13 | 8 5 Attach 4 | . 4 Detach 3 | 2 1 Swap 7 | 3 4 Drop 7 | 5 2 Fire 81 | 45 36 Melee . | . . Ram . | . . Kick . | . . Crush . | . . Escape Stasis . | . . Rewire . | . . Trap . | . . Miscellaneous . | . . Route ------- -11/Scrapyard -10/Materials (discovered 2 exits: [*Mat] / [*Min]) History --------- Turn | Location | Event 17 | -11/Scrapyard | Discovered new exit (range 15) 344 | -11/Scrapyard | Entered Materials 345 | -10/Materials | Build established: Mutant 529 | -10/Materials | Discovered new exit (range 15) 792 | -10/Materials | Discovered new exit (range 11) 858 | -10/Materials | Core integrity fell below 50% 888 | -10/Materials | Core integrity fell below 20% 921 | -10/Materials | Lost 7 parts (1p1n1u4w) 1059 | -10/Materials | Destroyed by G-34 Mercenary with Small Laser Last Messages --------------- 00909_ U-05 Engineer lays Concrete. 00909_ R-06 Scavenger collects Lgt. Assault Rifle. 00910_ U-05 Engineer lays Concrete. 00913_ K-01 Serf collects debris. 00914_ U-05 Engineer lays Concrete. 00918_ K-01 Serf collects debris. 00919_ U-05 Engineer lays Concrete. 00923_ K-01 Serf collects debris. 00923_ U-05 Engineer builds a Wall. 00923_ U-05 Engineer lays Concrete. 00927_ K-01 Serf collects debris. 00928_ U-05 Engineer lays Concrete. 00929_ U-05 Engineer builds a Wall. 00930_ K-01 Serf collects debris. 00931_ U-05 Engineer builds a Wall. 00980_ Acquired EM Pulse Gun. 01035_ Triggered Alarm Trap. 01035_ An alarm sounds. 01035_ ALERT: Alarm triggered, dispatching investigation squad. 01040_ K-01 Serf cleans the Electrolysis Chamber. Map ----- +----------------------------------------------------+ | ?########?# """"""""" #????????????????? | | ?? #?#! """"" #????????????????? | | ? """"" #?# #????????????????? | | # """"" #?# #????????????????? | | # """"" #########+######????????????????? | | # # #????????????????????? | | # """"" + #????????????????????? | | # """"" # #????????????????????? | | ? """"" ### #### #????????????######### | | ?? #?# #??# ??????????# | | ? #?# ##?# ????????# | | # #?# #??# ??????# | | ###########+##?# #### ?????# | | # #?# #????#+##????# | | # """ """ #?# #????????????# | | # """ """ #?# #????????????# | | # """ """ #?# #????????????# | | # #?# #??????????#######+##+ | | # ### ##?????????# # | | ?#####+######## #?????????# # | | ????# #?????????# # | | ????# T # ????????# + | | ????# #?????????# # ### | | ????# ###+### #??#??????# # ## | | ????# ## ###g######??????# # ## | | ????# ## T # @ #??????####### ## | | ????# ## # """ #????????????# ## | | ????###### # | """ #????????????# ## | | #????????# # """ #????????????# ## | | ?????????# # ############## ## | | ?????????# # """ + + | | ?????????# # """ ################## | | ?????????# # """ #????????????????? | | ?????????###### | #????????????????? | | ????????#?????##########????????????????? | | | | | | | | | | | | | | | | | | | | | | | | | | | | | | | +----------------------------------------------------+ Best States ------------- Heat Dissipation 25 Energy Generation 10 Energy Capacity 250 Matter Stores 300 Matter Capacity 300 Sight Range 16 Terrain Scan Range 14 Terrain Scan Density 10 Armor Coverage 150 Evasion (%) 40 Item Schematics ----------------- None Robot Schematics ------------------ None Fabricated ------------ Nothing Alien Tech Used ----------------- None Achievements -------------- None Challenges ------------ None Game ------ Seed NuclearTractorCarapace Manual? 0 Play Time 00:11:21 Cumulative 155.8 hours Start 2019.12.25 @ 19:09:34 End 2019.12.25 @ 19:16:43 Sessions 1 Manual Loads 0 Difficulty Rogue Special Mode None Game No. 212 Rogue 201 Adventurer 11 Explorer 0 Win Type - Total 0 Types 0/0/0/0/0/0/0 Lore% 48 Gallery% 59 Achievement% 42 Wizard Run 0 Options --------- ASCII 0 Keyboard 1 Movement Numpad Keybinds 0 Fullscreen 1 Font 12/Terminus Map View 83x54 Tactical HUD 1 Map Filters NONE Filters NONE Steam X RUN: 4fc16997-03a9-474c-9659-d50a2accf296